[Event "Israel-ch Semi-final 2022"]
[Site "Ramat Gan"]
[Date "2022.06.13"]
[Round "5.2"]
[White "Zemach, Nadav"]
[Black "Ben Ari, Yannay"]
[Result "1/2-1/2"]
[ECO "D11"]
[WhiteElo "2238"]
[BlackElo "2409"]
[Annotator "TA"]
[PlyCount "32"]
[EventDate "2022.05.09"]
[EventType "swiss"]
[EventCountry "ISR"]
[SourceTitle "playchess.com"]
[Source "ChessBase"]
[SourceQuality "1"]
[TimeControl "40/5400+30:1800+30"]

{[%evp 9,32,24,10,0,0,-8,-9,-5,-3,-9,7,-22,0,7,17,13,16,11,15,0,17,15,0,0,31]} 1. d4 {[%emt 0:00:01]} d5 {[%emt 0:00:06]} 2. c4 {[%emt 0:00:07]} c6 {[%emt 0:00:23]} 3. Nf3 {[%emt 0:00:13]} Nf6 {[%emt 0:00:02]} 4. g3 {[%emt 0:00:07]} Bg4 {[%emt 0:00:11]} 5. Ne5 {[%emt 0:01:03]} Bf5 {[%emt 0:00:02]} 6. Nc3 {[%emt 0:00:47] The position is equal. D11: Slav Defence: 3 Nf3 sidelines and 3...Nf6 4 e3 Bg4.} e6 {[%emt 0:00:35][%cal Be7e6,Be6e5][%mdl 32]} 7. Qb3 {[%emt 0:01:35] The modern move.} Qb6 {[%emt 0:00:38]} 8. c5 {[%emt 0:01:26]} Qxb3 {[%emt 0:13:15]} 9. axb3 {[%emt 0:00:10] [#]} Nfd7 $146 {[%emt 0:09:57]} ({Predecessor:} 9... Nbd7 10. Nxd7 Kxd7 11. b4 Ne4 12. b5 Nxc3 13. bxc3 cxb5 14. e3 Kc6 15. Ra5 b6 16. cxb6 {0-1 (51) Yang,K (2481)-Begunov,K (2325) Chess.com INT 2022}) 10. Nf3 {[%emt 0:08:53]} e5 {[%emt 0:12:37]} (10... Na6 $5 {[%cal Ra6b4]}) 11. e3 {[%emt 0:00:34]} g6 {[%emt 0:02:45]} 12. Be2 {[%emt 0:03:27]} Bg7 {[%emt 0:00:22]} 13. O-O {[%emt 0:01:09]} O-O {[%emt 0:10:19]} 14. b4 {[%emt 1:17:58]} Re8 {[%emt 0:06:04]} 15. Rd1 {[%emt 0:00:00]} Bg4 {[%emt 0:04:15]} 16. Kg2 {[%emt 0:00:00]} e4 {[%emt 0:08:15] An uneventful encounter.  Weighted Error Value: White=0.04 (flawless) /Black=0.04 (flawless)} 1/2-1/2

[Event "Israel-ch Semi-final 2022"]
[Site "Ramat Gan"]
[Date "2022.06.13"]
[Round "5.3"]
[White "Aharonovich, Itamar"]
[Black "Poleg, Matan"]
[Result "1-0"]
[ECO "E11"]
[WhiteElo "2324"]
[BlackElo "2225"]
[Annotator "TA"]
[PlyCount "83"]
[EventDate "2022.05.09"]
[EventType "swiss"]
[EventCountry "ISR"]
[SourceTitle "playchess.com"]
[Source "ChessBase"]
[SourceQuality "1"]
[TimeControl "40/5400+30:1800+30"]

{[%evp 17,83,0,30,5,28,6,10,0,4,0,16,3,16,4,33,33,69,75,103,95,122,120,115,117,141,137,132,133,166,169,304,232,246,275,432,426,487,483,491,486,468,382,614,608,597,596,1270,1215,1637,1496,1427,829,2256,1678,29979,29980,29980,29981,29993,29994,29995,29983,29981,29982,29982,29983,29982,29971]} 1. d4 {[%emt 0:00:02]} Nf6 {[%emt 0:10:33]} 2. c4 {[%emt 0:00:09]} e6 {[%emt 0:00:05]} 3. g3 {[%emt 0:00:05]} d5 {[%emt 0:00:15]} 4. Nf3 {[%emt 0:00:14]} Bb4+ {[%emt 0:00:37]} 5. Bd2 {[%emt 0:00:11]} Be7 {[%emt 0:00:06]} 6. Bg2 {[%emt 0:00:11]} O-O {[%emt 0:00:08]} 7. O-O {[%emt 0:00:05]} Nbd7 {[%emt 0:00:16]} 8. Qc2 {[%emt 0:00:19]} c6 {[%emt 0:00:10]} 9. Rd1 {[%emt 0:05:21]} Ne4 {[%emt 0:02:31]} 10. Bc1 {[%emt 0:02:52] E11: Bogo-Indian.} b6 {[%emt 0:03:59]} 11. b3 {[%emt 0:01:26]} Bb7 {[%emt 0:05:30]} 12. Bb2 {[%emt 0:03:43] The position is equal.} Rc8 {[%emt 0:00:33]} 13. Nc3 {[%emt 0:00:13]} f5 {[%emt 0:02:04]} 14. e3 {[%emt 0:00:51] [#]} g5 $146 {[%emt 0:06:55]} ({Predecessor:} 14... Qe8 15. a4 a5 16. Ba3 Bb4 17. Ne2 c5 18. Bxb4 axb4 19. a5 cxd4 20. Nfxd4 dxc4 21. bxc4 {0-1 (38) Ernst,S (2540)-Asadli,V (2572) Chess.com INT 2020}) 15. Ne2 {[%emt 0:00:16]} b5 {[%emt 0:15:05]} 16. c5 {[%emt 0:15:01]} Rf7 {[%emt 0:01:16]} 17. b4 {[%emt 0:03:51] White stays focused until the end.} h5 {[%emt 0:04:59]} 18. a4 {[%emt 0:00:45]} a6 {[%emt 0:00:06]} 19. Ne5 {[%emt 0:02:03]} Rh7 {[%emt 0:04:27]} 20. f3 {[%emt 0:04:48]} Nef6 {[%emt 0:00:14]} 21. e4 $36 {[%emt 0:11:59][%mdl 2048] White is in control. White is much more active.} fxe4 {[%emt 0:05:50]} 22. fxe4 {[%emt 0:01:27]} Nf8 {[%emt 0:00:10]} 23. Nc3 {[%emt 0:03:44]} h4 {[%emt 0:02:31]} (23... bxa4 $142 24. Rxa4 (24. Qxa4 h4 $16) 24... Qe8) 24. gxh4 {[%emt 0:08:20]} Rxh4 {[%emt 0:00:51]} 25. exd5 {[%emt 0:01:12]} exd5 {[%emt 0:00:16]} (25... Nxd5 {keeps fighting.} 26. Nxd5 (26. Qf2 Nf4 $16) 26... cxd5 27. axb5 axb5) 26. axb5 $18 {[%emt 0:00:43]} axb5 {[%emt 0:00:22]} 27. Ra7 {[%emt 0:02:58]} Rc7 {[%emt 0:02:23] [#]} 28. Rxb7 {[%emt 0:12:16][%mdl 512]} Rxb7 {[%emt 0:00:01]} 29. Nxc6 {[%emt 0:00:22]} Qe8 {[%emt 0:01:43] [#]} (29... Qc8) 30. Nxd5 $1 {[%emt 0:00:26]} Nxd5 {[%emt 0:00:15]} 31. Bxd5+ {[%emt 0:00:13]} Kh8 {[%emt 0:00:06]} 32. Ne5 {[%emt 0:01:09]} Ra7 {[%emt 0:01:05]} 33. Bf7 {[%emt 0:03:00] This bishop pair is nice.} Qc8 {[%emt 0:01:05]} 34. d5 {[%emt 0:02:27][%cal Bd4d5,Bd5d6][%mdl 32] Intending Ng4+ and mate.} Kg7 {[%emt 0:00:07]} 35. Rf1 {[%emt 0:01:23] Threatening mate with Nd7+.} Bf6 {[%emt 0:06:10] [#]} 36. Rxf6 $1 {[%emt 0:04:56][%mdl 512] White mates.} Kxf6 {[%emt 0:00:40]} 37. Nd7+ {[%emt 0:00:25][%mdl 64] Discovered Attack (Double check)} Kxf7 {[%emt 0:03:17]} 38. Qf5+ {[%emt 0:00:27]} Ke7 {[%emt 0:00:20]} 39. d6+ {[%emt 0:03:09]} Kd8 {[%emt 0:01:38]} 40. Qxf8+ {[%emt 0:00:11]} Kxd7 {[%emt 0:00:05]} 41. Qf5+ {[%emt 0:30:07]} Kd8 {[%emt 0:30:01]} 42. Bf6+ {[%emt 0:00:08][%mdl 64] Deflection, Double Attack.  Weighted Error Value: White=0.11 (very precise) /Black=0.47} 1-0

[Event "Israel-ch Semi-final 2022"]
[Site "Ramat Gan"]
[Date "2022.06.13"]
[Round "5.4"]
[White "Yaniv, Yuval"]
[Black "Rozen, Guy"]
[Result "1-0"]
[ECO "B04"]
[WhiteElo "2301"]
[BlackElo "1967"]
[Annotator "TA"]
[PlyCount "79"]
[EventDate "2022.05.09"]
[EventType "swiss"]
[EventCountry "ISR"]
[SourceTitle "playchess.com"]
[Source "ChessBase"]
[SourceQuality "1"]
[TimeControl "40/5400+30:1800+30"]

{[%evp 10,79,48,36,41,35,41,41,43,43,47,35,40,49,39,42,39,25,27,23,25,15,26,24,57,26,48,46,67,51,61,33,88,50,259,258,252,252,529,523,517,516,504,515,491,499,439,398,489,483,629,621,749,739,722,718,905,905,882,811,1079,1151,1143,1105,1470,1393,1444,1424,29978,29979,29992,29993]} 1. e4 {[%emt 0:00:06]} Nf6 {[%emt 0:00:35]} 2. e5 {[%emt 0:00:17]} Nd5 {[%emt 0:00:03]} 3. d4 {[%emt 0:00:25]} d6 {[%emt 0:00:43]} 4. Nf3 {[%emt 0:00:35]} dxe5 {[%emt 0:00:43]} 5. Nxe5 {[%emt 0:00:10]} c6 {[%emt 0:00:59]} 6. Be2 {[%emt 0:00:20]} Bf5 {[%emt 0:02:19] B04: Alekhine's Defence: 4 Nf3.} 7. O-O {[%emt 0:00:40]} Nd7 {[%emt 0:00:52]} 8. Nf3 {[%emt 0:00:09]} e6 {[%emt 0:09:01] White is slightly better.} 9. c4 {[%emt 0:00:19]} N5f6 {[%emt 0:01:28]} 10. Nh4 {[%emt 0:03:00]} Bxb1 {[%emt 0:15:21]} 11. Rxb1 {[%emt 0:00:04]} Bd6 {[%emt 0:03:33]} 12. g3 {[%emt 0:00:28]} O-O {[%emt 0:00:33]} 13. Bf3 {[%emt 0:01:15]} Re8 {[%emt 0:01:47] [#]} 14. Bg2 $146 {[%emt 0:02:35]} ({Predecessor:} 14. b4 e5 15. Nf5 Bf8 16. b5 e4 17. Bg2 c5 18. Bf4 cxd4 19. Qxd4 Nc5 20. Bd6 Bxd6 21. Nxd6 Re6 22. Qxc5 Rxd6 23. Qf5 Rd4 24. Rfe1 {½-½ (24) Santagati,A (2271)-Shkapenko,P (2420) Erice 2016}) 14... e5 {[%emt 0:05:36]} 15. dxe5 {[%emt 0:08:47]} Nxe5 {[%emt 0:03:31]} 16. Qc2 {[%emt 0:00:18]} Qa5 {[%emt 0:05:32]} 17. a3 {[%emt 0:07:46][%cal Ba2a3,Ba3a4][%mdl 32]} Rad8 {[%emt 0:00:06]} 18. b4 {[%emt 0:02:10][%cal Bb2b4,Bb4b5][%mdl 32]} Qa6 {[%emt 0:01:37]} 19. b5 {[%emt 0:02:08]} Qa5 {[%emt 0:00:03]} 20. a4 {[%emt 0:05:42]} Rc8 {[%emt 0:12:45]} (20... Bc5 $14) 21. Bh3 {[%emt 0:11:10] This bishop pair is nice.} Rc7 {[%emt 0:00:54] Loses the game.} (21... Rcd8 $14) 22. Bd2 $18 {[%emt 0:01:52][%cal Bc1d2,Bd2e3,Be3c5][%mdl 32]} Qb6 {[%emt 0:00:02]} 23. Be3 {[%emt 0:00:25]} Bc5 {[%emt 0:00:41]} (23... Qa5 {was worth a try.} 24. b6 Rce7) 24. a5 $1 {[%emt 0:00:40]} Qxa5 {[%emt 0:00:14]} 25. Bxc5 {[%emt 0:00:09] [#] Threatens to win with Ra1.} cxb5 {[%emt 0:01:10]} 26. Ra1 {[%emt 0:02:01]} Qxa1 {[%emt 0:00:20]} 27. Rxa1 {[%emt 0:00:02]} Rxc5 {[%emt 0:00:07]} 28. Bg2 {[%emt 0:08:12]} Nxc4 {[%emt 0:01:35]} 29. Bxb7 {[%emt 0:02:27]} Nd7 {[%emt 0:07:03]} 30. Qd1 {[%emt 0:01:04]} Ndb6 {[%emt 0:10:37]} 31. Qd4 {[%emt 0:03:56]} Rc7 {[%emt 0:01:51] [#]} 32. Nf5 $1 {[%emt 0:02:46][%csl Gf5][%cal Rd4g7]} Ne5 {[%emt 0:00:26]} (32... f6 33. Rxa7) 33. f4 {[%emt 0:04:54]} Rxb7 {[%emt 0:00:46]} 34. fxe5 {[%emt 0:00:46] Qg4 is the strong threat.} Rd7 {[%emt 0:04:44]} 35. Qg4 {[%emt 0:02:39][%csl Gf5][%cal Rg4g7]} g6 {[%emt 0:00:32]} 36. Nh6+ {[%emt 0:00:50]} Kg7 {[%emt 0:00:07]} 37. Qg5 {[%emt 0:00:18]} Nd5 {[%emt 0:07:03]} 38. Ng4 {[%emt 0:00:18]} Kh8 {[%emt 0:00:28]} 39. Rd1 {[%emt 0:01:47]} Re6 {[%emt 0:02:14]} 40. Qh6 {[%emt 0:00:07] Weighted Error Value: White=0.06 (flawless) /Black=0.52} 1-0

[Event "Israel-ch Semi-final 2022"]
[Site "Ramat Gan"]
[Date "2022.06.13"]
[Round "5.5"]
[White "Yaniv, Ori"]
[Black "Reprun, Nadejda"]
[Result "1/2-1/2"]
[ECO "B12"]
[WhiteElo "2143"]
[BlackElo "1954"]
[Annotator "NA RC"]
[PlyCount "40"]
[EventDate "2022.05.09"]
[EventType "swiss"]
[EventCountry "ISR"]
[SourceTitle "playchess.com"]
[Source "ChessBase"]
[SourceQuality "1"]
[TimeControl "40/5400+30:1800+30"]

1. e4 {[%emt 0:01:57]} c6 {[%emt 0:00:03]} 2. d4 {[%emt 0:00:07]} d5 {[%emt 0:00:05]} 3. e5 {[%emt 0:00:05]} Bf5 {[%emt 0:00:03]} 4. h4 {[%emt 0:00:47]} h5 {[%emt 0:00:04]} 5. Bd3 {[%emt 0:00:06]} Bxd3 {[%emt 0:00:04]} 6. Qxd3 {[%emt 0:00:06]} e6 {[%emt 0:00:03]} 7. Bg5 {[%emt 0:00:08]} Be7 {[%emt 0:00:08]} 8. Nf3 {[%emt 0:00:08]} Nh6 {[%emt 0:00:08]} 9. Nbd2 {[%emt 0:00:07]} Nf5 {[%emt 0:00:21]} 10. Nf1 {[%emt 0:00:24]} c5 {[%emt 0:04:40]} 11. c3 {[%emt 0:10:56]} cxd4 {[%emt 1:30:21]} 12. cxd4 Qa5+ 13. Bd2 Qa6 14. Qxa6 Nxa6 15. Ne3 Nxe3 16. fxe3 Kd7 17. Ke2 Rac8 18. a3 Nb8 19. Rh3 Nc6 20. Rg3 Rhg8 {[%emt 0:00:00]} 1/2-1/2

[Event "Israel-ch Semi-final 2022"]
[Site "Ramat Gan"]
[Date "2022.06.13"]
[Round "5.6"]
[White "Chernomordik, Pavel"]
[Black "Lahav, Michal"]
[Result "1/2-1/2"]
[ECO "B11"]
[WhiteElo "2178"]
[BlackElo "2199"]
[Annotator "NA RC"]
[PlyCount "38"]
[EventDate "2022.05.09"]
[EventType "swiss"]
[EventCountry "ISR"]
[SourceTitle "playchess.com"]
[Source "ChessBase"]
[SourceQuality "1"]
[TimeControl "40/5400+30:1800+30"]

1. e4 {[%emt 0:02:04]} c6 {[%emt 0:00:02]} 2. Nc3 {[%emt 0:00:41]} d5 {[%emt 0:00:03]} 3. Nf3 {[%emt 0:00:02]} dxe4 {[%emt 0:00:05]} 4. Nxe4 {[%emt 0:00:12]} Nf6 {[%emt 0:00:03]} 5. Qe2 {[%emt 0:00:11]} Nxe4 {[%emt 0:00:03]} 6. Qxe4 {[%emt 0:00:02]} Be6 {[%emt 0:00:02]} 7. b3 {[%emt 0:02:49]} Nd7 {[%emt 0:00:09]} 8. Bb2 {[%emt 0:00:33]} Nf6 {[%emt 0:00:08]} 9. Qh4 {[%emt 0:00:50]} Bf5 {[%emt 0:25:23]} 10. Ne5 {[%emt 0:06:57]} e6 {[%emt 0:02:53]} 11. Bd3 {[%emt 0:10:04]} Bxd3 {[%emt 0:02:10]} 12. Nxd3 {[%emt 0:00:18]} Be7 {[%emt 0:03:35]} 13. Qg3 {[%emt 0:04:01]} Qd5 {[%emt 0:16:29]} 14. O-O {[%emt 0:05:01]} O-O-O {[%emt 0:04:19]} 15. Qe3 {[%emt 0:03:45]} Kb8 {[%emt 0:08:24]} 16. Rfe1 {[%emt 0:11:54]} Qh5 {[%emt 0:06:18]} 17. Qf4+ {[%emt 0:06:03]} Ka8 {[%emt 0:00:24]} 18. a4 {[%emt 0:11:31]} Rd5 {[%emt 0:05:22]} 19. Re5 {[%emt 0:05:12]} Qg6 {[%emt 0:04:46]} 1/2-1/2

[Event "Israel-ch Semi-final 2022"]
[Site "Ramat Gan"]
[Date "2022.06.13"]
[Round "5.7"]
[White "Shimshovich, Asaf"]
[Black "Levin, Guy"]
[Result "0-1"]
[ECO "B90"]
[WhiteElo "1816"]
[BlackElo "2354"]
[Annotator "TA"]
[PlyCount "72"]
[EventDate "2022.05.09"]
[EventType "swiss"]
[EventCountry "ISR"]
[SourceTitle "playchess.com"]
[Source "ChessBase"]
[SourceQuality "1"]
[TimeControl "40/5400+30:1800+30"]

{[%evp 11,72,14,32,28,28,49,46,49,48,65,48,42,53,46,58,54,52,14,14,0,0,0,0,0,0,-17,-18,-50,8,-93,-45,-88,-88,-88,-88,-86,-93,-93,-93,-125,-120,-116,-93,-119,-45,-27,-5,0,0,-114,-116,-668,-666,-664,-648,-625,-616,-29992,-29993,-29993,-29994,-29998,-29999]} 1. e4 {[%emt 0:00:10]} c5 {[%emt 0:00:07]} 2. Nf3 {[%emt 0:00:05]} d6 {[%emt 0:01:09]} 3. d4 {[%emt 0:00:07]} cxd4 {[%emt 0:00:05]} 4. Nxd4 {[%emt 0:00:05]} Nf6 {[%emt 0:00:06]} 5. Nc3 {[%emt 0:00:09]} a6 {[%emt 0:00:05]} 6. Qf3 {[%emt 0:00:51]} e6 {[%emt 0:00:30]} 7. g4 {[%emt 0:00:41] B90: Sicilian Najdorf: Unusual White 6th moves, 6 Be3 Ng4 and 6 Be3 e5.} h6 {[%emt 0:01:55]} 8. h4 {[%emt 0:01:03][%cal Bh2h4,Bh4g5][%mdl 32]} Qb6 {[%emt 0:04:51]} 9. Nb3 {[%emt 0:03:23] White is slightly better.} Nc6 {[%emt 0:00:15][%cal Od6d5]} 10. Be3 {[%emt 0:04:31]} Qc7 {[%emt 0:02:11]} 11. g5 {[%emt 0:14:42]} hxg5 {[%emt 0:02:54]} 12. hxg5 {[%emt 0:00:12]} Rxh1 {[%emt 0:00:21]} 13. Qxh1 {[%emt 0:00:15]} Ng4 {[%emt 0:00:09] [#]} 14. Bf4 $146 {[%emt 0:03:21]} ({Predecessor:} 14. Bd2 Nb4 15. Rc1 Ne5 16. a3 Nbc6 17. f4 Nd7 18. g6 fxg6 19. Qg2 Nf6 20. Qxg6+ {1-0 (54) Ducarmon,Q (2203)-Zimmermann,L (2057) Maastricht 2010}) 14... Nb4 {[%emt 0:01:32]} 15. Bd3 {[%emt 0:02:37]} ({Don't blunder} 15. Nd4 $2 e5 16. a3 exd4 $19) 15... Ne5 {[%emt 0:06:00]} 16. Bxe5 {[%emt 0:01:30]} dxe5 {[%emt 0:11:22]} 17. O-O-O {[%emt 0:01:23]} Bd7 {[%emt 0:04:43]} 18. Qh5 {[%emt 0:08:55]} g6 {[%emt 0:00:30]} 19. Qh7 {[%emt 0:05:12]} Qb6 {[%emt 0:03:45]} ({Black should try} 19... b5 $15) 20. Rd2 {[%emt 0:20:00]} (20. Be2 $11 {keeps the balance.}) 20... Rc8 {[%emt 0:09:45]} (20... Nxd3+ $17 21. cxd3 a5) 21. Kb1 {[%emt 0:03:16]} Nxd3 {[%emt 0:00:44]} 22. cxd3 {[%emt 0:04:20]} a5 {[%emt 0:00:06] Hoping for ...a4.} 23. Rc2 {[%emt 0:02:42]} Qd8 {[%emt 0:03:48]} 24. Qh4 {[%emt 0:01:36]} b5 {[%emt 0:01:57]} 25. Nd1 {[%emt 0:01:43]} Rxc2 {[%emt 0:13:43]} 26. Kxc2 {[%emt 0:00:08]} Qc7+ {[%emt 0:00:12]} 27. Kb1 {[%emt 0:01:19] [#]} a4 {[%emt 0:00:02]} (27... b4 $1 $17 28. Nc1 a4) 28. Nd2 $15 {[%emt 0:03:37]} a3 {[%emt 0:00:26]} 29. bxa3 {[%emt 0:04:05]} Qa5 $40 {[%emt 0:00:47][%mdl 128] White needs to defend precisely.} 30. Nb3 {[%emt 0:00:32]} (30. Nf3 $1 $11) 30... Qe1 $17 {[%emt 0:01:30]} ({Not} 30... Qxa3 31. Qh8 $15) 31. Kc2 {[%emt 0:02:08][%mdl 8192] Loses the game.} (31. Qg4 $17) 31... Qe2+ $19 {[%emt 0:01:14][%mdl 64] [#] Skewer} 32. Nd2 {[%emt 0:00:35]} b4 {[%emt 0:00:06] Prevents Nc3. ( -> ...Ba4+)} 33. Nb2 {[%emt 0:01:12] Prevents Ba4+.} bxa3 {[%emt 0:02:32]} 34. Nbc4 {[%emt 0:00:22]} Ba4+ {[%emt 0:00:48] Black mates.} 35. Kc3 {[%emt 0:00:07]} Qd1 {[%emt 0:00:06][%csl Ga4][%cal Rd1c2]} 36. Nxe5 {[%emt 0:01:57]} Qc2+ {[%emt 0:00:14] Weighted Error Value: White=0.62/Black=0.11 (very precise)} 0-1

[Event "Israel-ch Semi-final 2022"]
[Site "Ramat Gan"]
[Date "2022.06.13"]
[Round "5.8"]
[White "Solomon, Asif"]
[Black "Shteiman, Yuval"]
[Result "1-0"]
[ECO "A70"]
[WhiteElo "2288"]
[BlackElo "1984"]
[Annotator "NA RC"]
[PlyCount "85"]
[EventDate "2022.05.09"]
[EventType "swiss"]
[EventCountry "ISR"]
[SourceTitle "playchess.com"]
[Source "ChessBase"]
[SourceQuality "1"]
[TimeControl "40/5400+30:1800+30"]

1. d4 {[%emt 0:00:01]} Nf6 {[%emt 0:00:30]} 2. c4 {[%emt 0:00:05]} c5 {[%emt 0:00:01]} 3. d5 {[%emt 0:00:05]} e6 {[%emt 0:00:01]} 4. Nc3 {[%emt 0:00:06]} exd5 {[%emt 0:00:02]} 5. cxd5 {[%emt 0:00:06]} d6 {[%emt 0:00:03]} 6. e4 {[%emt 0:00:12]} g6 {[%emt 0:00:03]} 7. Nf3 {[%emt 0:00:24]} Bg4 {[%emt 0:01:08]} 8. Qa4+ {[%emt 0:00:54]} Bd7 {[%emt 0:02:01]} 9. Qb3 {[%emt 0:00:35]} Qc7 {[%emt 0:01:35]} 10. Bf4 {[%emt 0:08:28]} Nh5 {[%emt 0:03:04]} 11. Be3 {[%emt 0:00:56]} Bg7 {[%emt 0:04:40]} 12. Nd2 {[%emt 0:00:42]} O-O {[%emt 0:01:39]} 13. Be2 {[%emt 0:00:08]} Nf6 {[%emt 0:01:09]} 14. h3 {[%emt 0:03:07]} Na6 {[%emt 0:05:34]} 15. O-O {[%emt 0:04:06]} b5 {[%emt 0:03:59]} 16. Nxb5 {[%emt 0:06:13]} Bxb5 {[%emt 0:00:34]} 17. Qxb5 {[%emt 0:00:59]} Nb4 {[%emt 0:03:26]} 18. Qa4 {[%emt 0:01:36]} Rab8 {[%emt 0:07:07]} 19. a3 {[%emt 0:01:40]} Nbxd5 {[%emt 0:00:15]} 20. exd5 {[%emt 0:00:10]} Nxd5 {[%emt 0:00:12]} 21. Nc4 {[%emt 0:04:04]} Nxe3 {[%emt 0:03:41]} 22. Nxe3 {[%emt 0:00:23]} Rxb2 {[%emt 0:00:41]} 23. Bf3 {[%emt 0:01:35]} Qe7 {[%emt 0:11:19]} 24. Rae1 {[%emt 0:05:49]} Qf6 {[%emt 0:08:03]} 25. Qxa7 {[%emt 0:00:44]} Qh4 {[%emt 0:04:31]} 26. Qd7 {[%emt 0:11:17]} Bd4 {[%emt 0:11:03]} 27. Qxd6 {[%emt 0:01:03]} Re8 {[%emt 0:04:43]} 28. Qd7 {[%emt 0:01:21]} Rd8 {[%emt 0:05:02]} 29. Qc7 {[%emt 0:00:30]} Re8 {[%emt 0:02:51]} 30. Bd5 {[%emt 0:01:45]} Rf8 {[%emt 0:04:46]} 31. Qg3 {[%emt 0:04:29]} Qd8 {[%emt 0:01:50]} 32. Nf5 {[%emt 0:00:42]} Bf6 {[%emt 0:01:47]} 33. Rd1 {[%emt 0:00:07]} Qa5 {[%emt 0:01:43]} 34. Nh6+ {[%emt 0:01:05]} Kg7 {[%emt 0:00:07]} 35. Nxf7 {[%emt 0:01:11]} Qa4 {[%emt 0:01:00]} 36. Qc7 {[%emt 0:03:54]} Bd4 {[%emt 0:03:09]} 37. Ne5+ {[%emt 0:00:51]} Kh8 {[%emt 0:00:15]} 38. Nf7+ {[%emt 0:00:52]} Kg7 {[%emt 0:00:08]} 39. Rd3 {[%emt 0:00:25]} Rxf2 {[%emt 0:03:28]} 40. Rxf2 {[%emt 0:02:05]} Qc2 {[%emt 0:00:44]} 41. Ng5+ {[%emt 0:30:33]} Kh6 {[%emt 0:30:11]} 42. Qxh7+ {[%emt 0:00:10]} Kxg5 {[%emt 0:00:06]} 43. Rg3# {[%emt 0:00:05]} 1-0

[Event "Israel-ch Semi-final 2022"]
[Site "Ramat Gan"]
[Date "2022.06.13"]
[Round "5.9"]
[White "Flaum, Mark"]
[Black "Ribshtein, Nati"]
[Result "0-1"]
[ECO "B42"]
[WhiteElo "1915"]
[BlackElo "2286"]
[Annotator "NA RC"]
[PlyCount "80"]
[EventDate "2022.05.09"]
[EventType "swiss"]
[EventCountry "ISR"]
[SourceTitle "playchess.com"]
[Source "ChessBase"]
[SourceQuality "1"]
[TimeControl "40/5400+30:1800+30"]

1. e4 {[%emt 0:02:53]} c5 {[%emt 0:00:23]} 2. Nf3 {[%emt 0:00:25]} e6 {[%emt 0:00:43]} 3. d4 {[%emt 0:00:26]} cxd4 {[%emt 0:00:05]} 4. Nxd4 {[%emt 0:00:03]} a6 {[%emt 0:00:03]} 5. Bd3 {[%emt 0:00:08]} Bc5 {[%emt 0:01:00]} 6. Nb3 {[%emt 0:00:14]} Be7 {[%emt 0:00:20]} 7. O-O {[%emt 0:08:22]} d6 {[%emt 0:00:12]} 8. c4 {[%emt 0:01:32]} Nf6 {[%emt 0:01:06]} 9. Nc3 {[%emt 0:00:05]} Nbd7 {[%emt 0:05:10]} 10. Qe2 {[%emt 0:04:34]} b6 {[%emt 0:00:18]} 11. Bf4 {[%emt 0:11:48]} Bb7 {[%emt 0:00:26]} 12. f3 {[%emt 0:01:08]} O-O {[%emt 0:04:25]} 13. Rac1 {[%emt 0:00:09]} Ne5 {[%emt 0:03:06]} 14. Bb1 {[%emt 0:01:31]} Rc8 {[%emt 0:00:47]} 15. Nd2 {[%emt 0:00:05]} Qc7 {[%emt 0:05:24]} 16. b3 {[%emt 0:00:05]} Qb8 {[%emt 0:06:40]} 17. a4 {[%emt 0:03:37]} Bd8 {[%emt 0:10:18]} 18. Rfd1 {[%emt 0:02:47]} Bc7 {[%emt 0:10:45]} 19. Nf1 {[%emt 0:01:21]} Ng6 {[%emt 0:01:33]} 20. Be3 {[%emt 0:01:27]} Rfe8 {[%emt 0:05:46]} 21. Qf2 {[%emt 0:00:54]} Ba8 {[%emt 0:04:03]} 22. Rc2 {[%emt 0:16:51]} Bc6 {[%emt 0:04:13]} 23. b4 {[%emt 0:07:54]} Ba8 {[%emt 0:12:36]} 24. Rcd2 {[%emt 0:01:37]} Ne5 {[%emt 0:05:10]} 25. Ba2 {[%emt 0:01:06]} Bd8 {[%emt 0:01:58]} 26. Rxd6 {[%emt 0:01:38]} a5 {[%emt 0:08:24]} 27. Bf4 {[%emt 0:18:34]} Ng6 {[%emt 0:06:46]} 28. Rxd8 {[%emt 0:04:32]} Nxf4 {[%emt 0:00:09]} 29. Rxe8+ {[%emt 0:00:20]} Nxe8 {[%emt 0:00:10]} 30. bxa5 {[%emt 0:00:47]} bxa5 {[%emt 0:00:07]} 31. Nb5 {[%emt 0:00:43]} Bc6 {[%emt 0:01:45]} 32. Ne3 {[%emt 0:03:23]} h5 {[%emt 0:01:04]} 33. Qd2 {[%emt 0:01:17]} Qb6 {[%emt 0:01:10]} 34. Kh1 {[%emt 0:02:46]} Nf6 {[%emt 0:00:40]} 35. Nc2 {[%emt 0:01:43]} g5 {[%emt 0:00:40]} 36. Ncd4 {[%emt 0:00:43]} Rd8 {[%emt 0:00:31]} 37. h4 {[%emt 0:01:00]} e5 {[%emt 0:00:27]} 38. hxg5 {[%emt 0:00:18]} Bxb5 {[%emt 0:00:05]} 39. axb5 {[%emt 0:00:00]} Rxd4 {[%emt 0:00:00]} 40. c5 {[%emt 0:00:00]} Rxd2 {[%emt 0:00:00]} 0-1